bitfinex-derivatives/quotes_ETHF0:USTF0_20210406
["timestamp","ask_amount","ask_price","bid_price","bid_amount"]
[1617727250251,2.0,2095.6,2094.7,5.89]
[1617727250450,2.0,2095.6,2094.0,4.98805359]
[1617727250650,2.0,2095.6,2094.8,5.89]
[1617727251053,2.90695,2094.9,2094.6,2.90695]
[1617727251250,3.85835,2094.9,2094.6,2.90695]
[1617727251451,3.85835,2094.9,2094.7,0.51]
[1617727253862,2.90695,2094.9,2094.7,0.51]
[1617727255254,2.90695,2094.9,2094.1,5.89]
[1617727255453,5.07425,2094.9,2094.1,5.89]
[1617727255652,5.07425,2094.9,2094.0,2.571]
[1617727255653,5.07425,2094.9,2094.8,5.98]
[1617727255852,5.07425,2094.9,2094.1,5.85]
[1617727256253,5.07425,2094.9,2094.8,5.82]
[1617727256453,5.07425,2094.9,2094.1,5.78]
[1617727256853,5.07425,2094.9,2094.8,5.81]
[1617727257054,5.07425,2094.9,2094.0,5.89]
[1617727257253,5.07425,2094.9,2093.9,2.90695]
[1617727257454,5.07425,2094.9,2094.8,5.77]
[1617727257655,5.07425,2094.9,2094.0,5.98]
[1617727258057,5.07425,2094.9,2094.8,5.74]
[1617727258459,5.07425,2094.9,2094.0,5.84]
[1617727258657,5.07425,2094.9,2093.9,2.90695]
[1617727259056,2.90695,2094.0,2093.9,2.90695]
[1617727259256,5.36145,2094.0,2093.9,2.90695]
[1617727259459,5.36145,2094.0,2093.9,8.74695]
[1617727261663,2.90695,2094.0,2093.9,8.74695]
[1617727269170,3.87005,2094.0,2093.9,8.74695]
[1617727269569,2.90695,2094.0,2093.9,8.74695]
[1617727274076,3.84785,2094.0,2093.9,8.74695]
[1617727274276,2.90695,2094.0,2093.9,8.74695]
[1617727276280,69.8896,2094.8,2093.9,8.74695]
[1617727277079,2.90695,2094.0,2093.9,8.74695]
[1617727278281,69.8896,2094.8,2093.9,8.74695]
[1617727279183,2.90695,2094.0,2093.9,8.74695]
[1617727279988,69.8896,2094.8,2093.9,8.74695]
[1617727280188,69.8896,2094.8,2093.9,10.86055]
[1617727281187,2.90695,2094.0,2093.9,10.86055]
[1617727282488,69.8896,2094.8,2093.9,10.86055]
[1617727283089,69.8896,2094.8,2094.5,2.90695]
[1617727283289,69.8896,2094.8,2094.5,5.19455]
[1617727283489,69.8896,2094.8,2094.6,5.88]
[1617727283694,13.1694,2095.0,2094.6,5.88]
[1617727285296,13.1694,2095.0,2094.9,2.90695]
[1617727285694,13.1694,2095.0,2094.9,8.62695]
[1617727287194,16.07635,2095.0,2094.9,8.62695]
[1617727289996,16.07635,2095.0,2094.9,6.55685]
[1617727290198,16.07635,2095.0,2094.9,4.1721]
[1617727290397,16.07635,2095.0,2094.9,1.2822]
[1617727294001,16.07635,2095.0,2094.9,3.3137]
[1617727296806,16.07635,2095.0,2094.9,1.2822]
[1617727297206,16.07635,2095.0,2094.9,0.1214]
[1617727297406,16.07635,2095.0,2094.6,2.90695]
[1617727297807,16.07635,2095.0,2094.9,5.94]
[1617727298008,16.07635,2095.0,2094.7,5.96]
[1617727298207,16.07635,2095.0,2094.6,2.90695]
[1617727298409,16.07635,2095.0,2094.9,5.84]
[1617727298608,16.07635,2095.0,2094.7,5.97]
[1617727298809,16.07635,2095.0,2094.6,2.90695]
[1617727299310,13.1694,2095.0,2094.7,5.95]
[1617727301213,2.90695,2094.8,2094.7,5.95]
[1617727310524,2.90695,2094.8,2094.7,10.92659478]
[1617727312235,2.90695,2094.8,2094.7,5.95]
[1617727315736,2.90695,2094.8,2094.7,8.8247]
[1617727317342,2.90695,2094.8,2094.7,10.8247]
[1617727320342,2.90695,2094.8,2094.7,16.91013592]
[1617727321145,2.90695,2094.8,2094.7,10.8247]
[1617727322447,2.90695,2094.8,2094.7,8.8247]
[1617727325051,79.5933,2095.6,2094.7,10.8247]
[1617727325652,82.50025,2095.6,2095.5,2.90695]
[1617727325851,2.90695,2095.6,2095.5,5.09435]
[1617727326052,2.90695,2095.6,2095.5,10.96435]
[1617727330861,2.90695,2095.6,2095.5,15.95254641]
[1617727332966,13.0545,2096.1,2095.5,10.96435]
[1617727333568,13.0545,2096.1,2096.0,2.90695]
[1617727333766,13.0545,2096.1,2096.0,5.90745]
[1617727333967,13.0545,2096.1,2096.0,11.89745]
[1617727335666,15.96145,2096.1,2096.0,11.89745]
[1617727344779,13.0545,2096.1,2096.0,11.89745]
[1617727345178,0.9544,2096.6,2096.0,11.89745]
[1617727345978,0.9544,2096.6,2096.5,2.90695]
[1617727346179,0.9544,2096.6,2096.5,4.91975]
[1617727346379,0.9544,2096.6,2096.5,10.73975]
[1617727348799,2.90695,2096.7,2096.5,10.73975]
[1617727356294,13.8105,2097.4,2096.5,10.73975]
[1617727357294,55.33,2097.8,2096.5,10.73975]
[1617727357695,56.2699,2097.8,2096.5,10.73975]
[1617727358197,56.2699,2097.8,2097.1,2.90695]
[1617727358397,56.2699,2097.8,2097.1,5.11585]
[1617727358601,56.2699,2097.8,2097.2,5.79]
[1617727360098,56.2699,2097.8,2097.6,2.90695]
[1617727360498,56.2699,2097.8,2097.7,5.71]
[1617727362200,59.17685,2097.8,2097.7,5.71]
[1617727371414,59.17685,2097.8,2097.7,8.373]
[1617727375416,58.23695,2097.8,2097.7,8.373]
[1617727375618,55.33,2097.8,2097.7,8.373]
[1617727382225,55.33,2097.8,2097.7,5.71]
[1617727384226,2.90695,2098.4,2097.7,8.0715]
[1617727384426,2.90695,2098.4,2098.3,2.90695]
[1617727384626,2.90695,2098.4,2098.3,4.72735]
[1617727384827,2.90695,2098.4,2098.3,10.56735]
[1617727385226,13.9855,2098.6,2098.3,10.56735]
[1617727385426,1.1,2098.6,2098.3,10.56735]
[1617727386026,0.9487,2099.1,2098.3,10.56735]
[1617727386226,2.0487,2099.1,2098.3,10.56735]
[1617727386426,2.0487,2099.1,2098.9,2.90695]
[1617727386727,2.0487,2099.1,2099.0,5.72]
[1617727387127,2.0487,2099.1,2099.0,4.7846]
[1617727387530,2.0487,2099.1,2097.1,2.0]
[1617727387531,2.0487,2099.1,2098.4,5.9]
[1617727387930,2.0487,2099.1,2099.0,2.67]
[1617727388130,2.0487,2099.1,2098.5,0.78]
[1617727388331,2.0487,2099.1,2098.6,2.90695]
[1617727388731,2.0487,2099.1,2098.7,3.33]
[1617727388931,0.9487,2099.1,2098.7,3.33]
[1617727389632,0.9487,2099.1,2098.7,2.1507]
[1617727389832,0.9487,2099.1,2098.6,2.90695]
[1617727389833,0.9487,2099.1,2098.6,1.86325]
[1617727390030,0.9487,2099.1,2097.1,2.0]
[1617727390232,0.9487,2099.1,2098.8,5.74]
[1617727390431,0.9487,2099.1,2098.7,6.0]
[1617727390633,0.9487,2099.1,2098.1,2.90695]
[1617727390634,2.90695,2098.8,2098.1,2.90695]
[1617727391033,2.90695,2098.8,2098.2,5.75]
[1617727392533,2.90695,2098.3,2097.9,2.90695]
[1617727392934,2.90695,2098.3,2098.0,5.88]
[1617727393535,2.90695,2098.3,2098.0,8.571]
[1617727398638,2.90695,2098.3,2098.0,5.88]
[1617727399438,4.84745,2098.3,2098.0,5.88]
[1617727401038,4.84745,2098.3,2096.3,2.0]
[1617727401039,4.84745,2098.3,2096.3,7.94]
[1617727401240,4.84745,2098.3,2096.9,2.69]
[1617727401441,4.84745,2098.3,2098.1,5.79]
[1617727401641,4.84745,2098.3,2096.4,5.73]
[1617727401842,4.84745,2098.3,2097.0,5.9]
[1617727402041,4.84745,2098.3,2098.2,5.78]
[1617727402241,4.84745,2098.3,2096.4,5.86]
[1617727402441,4.84745,2098.3,2097.1,5.96]
[1617727402643,1.9405,2098.3,2098.2,5.74]
[1617727402840,1.9405,2098.3,2097.5,2.90695]
[1617727402841,15.6458,2098.6,2097.5,2.90695]
[1617727403041,15.6458,2098.6,2097.6,3.17]
[1617727403241,15.6458,2098.6,2097.5,2.90695]
[1617727403242,82.5803,2098.6,2098.2,5.46]
[1617727403443,82.5803,2098.6,2097.5,2.90695]
[1617727403644,82.5803,2098.6,2097.6,5.77]
[1617727403843,82.5803,2098.6,2098.3,5.84]
[1617727404044,82.5803,2098.6,2097.5,2.90695]
[1617727404045,82.5803,2098.6,2098.0,2.3493]
[1617727404444,82.5803,2098.6,2098.4,5.92]
[1617727404646,2.90695,2098.5,2098.3,2.90695]
[1617727405045,2.90695,2098.5,2098.4,5.76]
[1617727406146,2.90695,2098.5,2098.1,5.95]
[1617727406550,2.90695,2098.5,2098.4,5.82]
[1617727406747,2.90695,2098.5,2098.2,5.94]
[1617727407149,2.90695,2098.5,2098.4,5.75]
[1617727407350,2.90695,2098.5,2098.3,5.79]
[1617727407750,2.90695,2098.5,2098.4,5.91]
[1617727407951,2.90695,2098.5,2098.0,3.5]
[1617727408150,2.90695,2098.5,2097.9,5.14]
[1617727408350,2.90695,2098.5,2098.4,5.86]
[1617727408552,2.90695,2098.5,2098.1,3.36]
[1617727408750,2.90695,2098.2,2097.9,5.91]
[1617727408952,2.90695,2098.2,2097.7,2.90695]
[1617727409351,2.90695,2098.2,2098.0,5.79]
[1617727409552,2.90695,2098.2,2097.8,5.94]
[1617727409753,2.90695,2098.2,2096.4,2.0]
[1617727409952,2.90695,2098.2,2098.1,5.99]
[1617727410156,2.90695,2098.2,2097.9,5.32]
[1617727410352,2.90695,2098.2,2096.5,0.22096603]
[1617727410554,2.90695,2098.2,2098.1,5.96]
[1617727410751,2.90695,2098.2,2098.0,4.71]
[1617727410952,2.90695,2098.2,2097.7,2.90695]
[1617727411152,2.90695,2098.2,2098.1,5.87]
[1617727411352,2.90695,2098.2,2097.8,4.05]
[1617727411552,2.90695,2098.2,2097.7,2.90695]
[1617727411754,2.90695,2098.2,2098.1,5.87]
[1617727411954,2.90695,2098.2,2097.8,5.8]
[1617727412155,2.90695,2098.2,2097.7,2.90695]
[1617727412355,2.90695,2098.2,2098.1,5.95]
[1617727412555,2.90695,2098.2,2097.8,5.96]
[1617727412755,82.5803,2098.6,2098.0,2.90695]
[1617727413157,82.5803,2098.6,2098.1,5.93]
[1617727414858,2.90695,2098.2,2098.1,5.93]
[1617727415258,2.90695,2098.2,2097.1,5.92]
[1617727415660,2.90695,2098.2,2098.1,5.95]
[1617727415860,2.90695,2098.2,2097.2,5.92]
[1617727416260,2.90695,2098.2,2098.1,5.81]
[1617727416460,2.90695,2098.2,2097.3,4.79]
[1617727416860,2.0,2098.5,2098.1,5.74]
[1617727417060,2.0,2098.5,2097.7,2.90695]
[1617727417462,82.5803,2098.6,2098.2,4.93]
[1617727417660,82.5803,2098.6,2097.7,2.90695]
[1617727418060,82.5803,2098.6,2098.3,5.79]
[1617727418263,84.5803,2098.6,2097.8,5.76]
[1617727418460,84.5803,2098.6,2097.7,2.90695]
[1617727418660,84.5803,2098.6,2098.0,5.97]
[1617727418960,84.5803,2098.6,2097.8,5.81]
[1617727418961,2.90695,2098.1,2097.8,5.81]
[1617727419364,2.90695,2098.1,2097.7,2.90695]
[1617727419564,2.90695,2098.1,2097.9,5.9]
[1617727419964,2.90695,2098.1,2097.8,5.94]
[1617727420165,2.90695,2098.1,2097.7,2.90695]
[1617727420465,2.90695,2098.1,2097.8,5.82]
[1617727423169,2.90695,2098.1,2097.8,8.7138]
[1617727432579,2.90695,2098.1,2097.8,5.82]
[1617727433380,4.90695,2098.1,2097.8,5.82]
[1617727433881,4.90695,2098.1,2097.0,5.88]
[1617727434080,4.90695,2098.1,2097.9,5.78]
[1617727434382,4.90695,2098.1,2097.3,4.98604183]
[1617727434781,4.90695,2098.1,2098.0,5.67]
[1617727434981,2.0,2098.1,2097.4,0.12]
[1617727435182,2.0,2098.1,2097.3,4.98604183]
[1617727435383,58.1362,2098.1,2097.3,4.98604183]
[1617727435582,58.1362,2098.1,2097.4,5.81]
[1617727436483,58.1362,2098.1,2097.3,5.71]
[1617727436884,2.90695,2097.4,2097.3,5.71]
[1617727437988,2.90695,2097.4,2097.3,10.69674101]
[1617727438384,2.90695,2097.4,2097.2,5.83]
[1617727438586,2.90695,2097.4,2097.2,11.92354374]
[1617727438784,2.90695,2097.4,2097.3,5.77]
[1617727438984,2.90695,2097.4,2097.2,11.89354374]
[1617727439184,2.90695,2097.4,2097.3,5.75]
[1617727439585,2.90695,2097.4,2097.3,10.73625281]
[1617727439985,2.90695,2097.4,2097.3,4.98625281]
[1617727440185,2.90695,2097.4,2097.3,10.87625281]
[1617727440487,2.90695,2097.4,2097.3,11.9809291]
[1617727440888,0.9411,2097.8,2097.3,5.89]
[1617727441287,0.9411,2097.8,2097.2,5.91]
[1617727441487,0.9411,2097.8,2097.6,4.98283496]
[1617727441687,0.9411,2097.8,2097.6,7.33373496]
[1617727441889,0.9411,2097.8,2097.7,5.77]
[1617727442887,3.84805,2097.8,2097.7,8.67695]
[1617727443387,3.84805,2097.8,2097.7,13.66182035]
[1617727443688,3.84805,2097.8,2097.7,8.67695]
[1617727444291,2.90695,2097.8,2097.7,8.67695]
[1617727444789,2.90695,2097.8,2097.7,13.66093479]
[1617727445189,3.86865,2097.8,2097.7,8.67695]
[1617727445589,3.86865,2097.8,2097.7,14.77768447]
[1617727446691,2.90695,2097.8,2097.7,14.77768447]
[1617727447591,13.1894,2098.3,2097.7,14.77768447]
[1617727447791,0.9487,2099.1,2097.7,14.77768447]
[1617727448193,0.9487,2099.1,2098.2,4.98423476]
[1617727448391,0.9487,2099.1,2098.2,7.97763476]
[1617727448692,0.9487,2099.1,2098.3,5.74]
[1617727448894,2.90695,2098.4,2098.3,8.64695]
[1617727450098,2.90695,2098.4,2098.3,13.63041089]
[1617727451201,2.90695,2098.4,2098.3,14.7374986]
[1617727453406,2.90695,2098.4,2098.3,8.64695]
[1617727454206,2.90695,2098.4,2098.3,13.62971414]
[1617727454405,2.90695,2098.4,2098.3,8.64695]
[1617727455206,2.90695,2098.4,2098.3,13.62953746]
[1617727455508,2.90695,2098.4,2098.3,8.64695]
[1617727456910,2.90695,2098.4,2098.3,14.73883873]
[1617727458812,2.90695,2098.4,2098.3,8.64695]
[1617727459711,2.90695,2098.4,2098.3,14.7359079]
[1617727460713,2.90695,2098.4,2098.3,8.64695]
[1617727460912,2.90695,2098.4,2098.3,11.03115]
[1617727463615,2.90695,2098.4,2098.3,17.11338486]
[1617727464016,2.90695,2098.4,2098.3,11.03115]
[1617727465118,2.90695,2098.4,2098.3,17.1079014]
[1617727467423,2.90695,2098.4,2098.3,11.03115]
[1617727469526,2.90695,2098.4,2098.3,17.11913979]
[1617727470227,2.90695,2098.4,2098.3,11.03115]
[1617727477733,2.90695,2098.4,2098.3,8.64695]
[1617727478034,2.90695,2098.4,2098.3,14.72685509]
[1617727481136,76.2408,2098.7,2098.3,14.72685509]
[1617727481537,76.2408,2098.7,2098.6,7.88240348]
[1617727481937,76.2408,2098.7,2098.6,13.64240348]
[1617727483738,76.2408,2098.7,2098.6,10.73545348]
[1617727483939,76.2408,2098.7,2098.6,5.76]
[1617727484343,76.2408,2098.7,2098.5,4.9715068]
[1617727484740,76.2408,2098.7,2098.6,5.79]
[1617727488143,76.2408,2098.7,2098.5,5.83]
[1617727488343,76.2408,2098.7,2098.5,10.79827465]
[1617727489543,76.2408,2098.7,2098.6,2.90695]
[1617727489943,76.2408,2098.7,2098.6,8.70695]
[1617727490546,76.2408,2098.7,2098.6,13.67181485]
[1617727492553,76.2408,2098.7,2098.6,8.70695]
[1617727493455,76.2408,2098.7,2098.6,13.66840994]
[1617727493654,76.2408,2098.7,2098.6,8.70695]
[1617727494255,76.2408,2098.7,2098.6,5.8]
[1617727495057,78.2033,2098.7,2098.6,5.8]
[1617727495755,78.2033,2098.7,2098.5,0.41]
[1617727495954,78.2033,2098.7,2098.6,5.19]
[1617727496356,78.2033,2098.7,2098.5,5.77]
[1617727496557,78.2033,2098.7,2098.4,4.96142841]
[1617727496558,78.2033,2098.7,2098.6,5.94]
[1617727496956,80.2033,2098.7,2098.5,6.0]
[1617727497157,3.9625,2098.7,2098.6,5.81]
[1617727497356,33.9625,2098.7,2098.1,4.94632446]
[1617727497558,2.90695,2098.2,2097.9,4.947833]
[1617727497756,4.85535,2098.2,2097.9,4.947833]
[1617727497956,4.85535,2098.2,2097.7,4.9497586]
[1617727498157,4.85535,2098.2,2098.0,3.4626]
[1617727498358,4.85535,2098.2,2097.7,10.7997586]
[1617727498559,4.85535,2098.2,2097.7,4.9497586]
[1617727498758,4.85535,2098.2,2098.1,0.36]
[1617727498957,4.85535,2098.2,2097.7,4.9497586]
[1617727499363,4.85535,2098.2,2098.1,5.99]
[1617727499558,4.85535,2098.2,2097.8,5.83]
[1617727499758,4.85535,2098.2,2097.7,7.8567086]
[1617727499958,4.85535,2098.2,2096.3,9.33779291]
[1617727499959,34.85535,2098.2,2098.1,5.97]
[1617727500157,34.85535,2098.2,2097.8,10.69175526]
[1617727500359,34.85535,2098.2,2097.6,4.94396808]
[1617727500560,34.85535,2098.2,2097.3,4.94828185]
[1617727500758,34.85535,2098.2,2097.3,2.64948185]
[1617727500959,2.0,2098.1,2096.8,6.04643609]
[1617727501158,34.85535,2098.2,2096.8,6.04643609]
[1617727501361,34.85535,2098.2,2097.4,5.88]
[1617727501559,2.90695,2097.5,2096.9,2.90695]
[1617727501761,5.39795,2097.5,2096.9,14.85375322]
[1617727501960,5.39795,2097.5,2097.3,5.95]
[1617727502160,5.39795,2097.5,2096.9,8.95375322]
[1617727502361,5.39795,2097.5,2097.0,5.89]
[1617727502561,5.39795,2097.5,2097.4,5.85]
[1617727502961,5.39795,2097.5,2097.0,6.0]
[1617727503161,5.39795,2097.5,2097.4,5.92]
[1617727503361,5.39795,2097.5,2096.8,6.04820442]
[1617727503561,2.491,2097.5,2097.1,5.88]
[1617727503763,2.491,2097.5,2097.0,2.45]
[1617727503961,2.491,2097.5,2096.9,6.04713109]
[1617727504161,2.491,2097.5,2097.2,5.82]
[1617727504364,2.491,2097.5,2097.0,5.8]
[1617727504566,2.491,2097.5,2096.8,6.04809916]
[1617727504764,2.491,2097.5,2097.3,0.7524]
[1617727504963,4.491,2097.5,2097.1,5.73]
[1617727505162,4.491,2097.5,2097.1,5.4966]
[1617727505362,4.491,2097.5,2097.4,5.74]
[1617727505562,4.491,2097.5,2096.9,5.89]
[1617727505563,7.39795,2097.5,2096.9,5.89]
[1617727505763,7.39795,2097.5,2096.7,2.90695]
[1617727505764,7.39795,2097.5,2097.2,5.76]
[1617727505963,7.39795,2097.5,2097.4,6.0]
[1617727506163,7.39795,2097.5,2096.8,3.19]
[1617727506364,7.39795,2097.5,2097.3,5.9]
[1617727506564,7.39795,2097.5,2096.4,6.05646911]
[1617727506765,37.39795,2097.5,2096.2,6.05956468]
[1617727507265,37.39795,2097.5,2096.3,5.78]
[1617727507666,2.90695,2096.4,2096.3,5.78]
[1617727507866,4.95085,2096.4,2096.3,5.78]
[1617727508867,2.90695,2096.4,2096.3,11.84837024]
[1617727509267,2.90695,2096.4,2096.3,6.06837024]
[1617727509670,2.90695,2096.4,2096.3,11.99837024]
[1617727511972,2.90695,2096.4,2096.3,5.93]
[1617727512370,2.90695,2096.4,2096.2,11.86755376]
[1617727512672,2.90695,2096.4,2096.3,5.92]
[1617727513169,2.90695,2096.4,2096.3,8.5034]
[1617727513770,2.90695,2096.4,2096.3,14.57169259]
[1617727514171,2.90695,2096.4,2096.3,8.5034]
[1617727516071,2.90695,2096.4,2096.3,15.66789603]
[1617727517574,12.9959,2097.4,2096.3,15.66789603]
[1617727517774,2.90695,2097.3,2096.3,15.66789603]
[1617727518374,2.90695,2097.3,2097.0,4.96586987]
[1617727518574,2.90695,2097.3,2097.0,7.90376987]
[1617727518774,2.90695,2097.3,2097.1,6.0]
[1617727519575,30.0,2098.4,2097.1,6.0]
[1617727519576,2.0,2098.6,2097.1,6.0]
[1617727519778,2.90695,2097.7,2097.5,2.90695]
[1617727519976,13.1204,2098.9,2097.5,2.90695]
[1617727519977,12.6096,2098.4,2097.5,5.43575]
[1617727520177,12.6096,2098.4,2097.5,11.17575]
[1617727521678,12.6096,2098.4,2098.3,2.90695]
[1617727521878,1.1,2098.5,2098.3,5.32915]
[1617727522080,0.9487,2099.1,2098.3,11.11915]
[1617727523682,0.9487,2099.1,2098.8,2.90695]
[1617727523879,0.9487,2099.1,2098.8,5.79395]
[1617727524081,0.9487,2099.1,2098.9,5.99]
[1617727525685,52.90695,2099.0,2098.9,5.99]
[1617727538810,53.85435,2099.0,2098.9,5.99]
[1617727539412,52.90695,2099.0,2098.9,5.99]
[1617727554526,52.90695,2099.0,2098.9,7.99]
[1617727560530,50.0,2099.0,2098.9,7.99]
[1617727560931,49.5206,2099.0,2098.9,7.99]
[1617727561131,48.6644,2099.0,2098.9,7.99]
[1617727561531,48.5983,2099.0,2098.9,7.99]
[1617727561933,47.6029,2099.0,2098.9,7.99]
[1617727562534,47.6029,2099.0,2098.9,12.91006351]
[1617727563133,47.6029,2099.0,2098.9,7.99]
[1617727565735,42.4002,2099.0,2098.9,37.99]
[1617727565934,39.9462,2099.0,2098.9,37.99]
[1617727566135,39.6287,2099.0,2098.9,37.99]
[1617727566338,39.6287,2099.0,2098.9,42.89476615]
[1617727566739,37.2705,2099.0,2098.9,37.99]
[1617727568842,36.3205,2099.0,2098.9,37.99]
[1617727570043,35.2591,2099.0,2098.9,37.99]
[1617727571647,34.058,2099.0,2098.9,37.99]
[1617727573048,32.8734,2099.0,2098.9,37.99]
[1617727573248,31.748,2099.0,2098.9,37.99]
[1617727573647,31.6503,2099.0,2098.9,37.99]
[1617727573849,27.5635,2099.0,2098.9,37.99]
[1617727574049,24.0013,2099.0,2098.9,37.99]
[1617727574251,22.6076,2099.0,2098.9,37.99]
[1617727574650,22.1081,2099.0,2098.9,37.99]
[1617727575451,20.6953,2099.0,2098.9,37.99]
[1617727575651,19.8398,2099.0,2098.9,37.99]
[1617727576050,17.2677,2099.0,2098.9,37.99]
[1617727576251,16.5475,2099.0,2098.9,37.99]
[1617727576450,15.7017,2099.0,2098.9,37.99]
[1617727576653,15.6224,2099.0,2098.9,37.99]
[1617727577854,13.263,2099.0,2098.9,37.99]
[1617727578052,13.1697,2099.0,2098.9,37.99]
[1617727579052,12.1062,2099.0,2098.9,37.99]
[1617727579253,12.1062,2099.0,2098.9,44.17807903]
[1617727579555,12.1062,2099.0,2098.9,43.08742875]
[1617727579556,11.929,2099.0,2098.9,43.08742875]
[1617727579753,7.9589,2099.0,2098.9,43.08742875]
[1617727580453,6.7758,2099.0,2098.9,43.08742875]
[1617727580653,5.1099,2099.0,2098.9,43.08742875]
[1617727580854,3.2395,2099.0,2098.9,43.08742875]
[1617727581057,2.1578,2099.0,2098.9,43.08742875]
[1617727581255,1.4858,2100.6,2098.9,43.08742875]
[1617727581455,15.8339,2102.3,2098.9,44.1676506]
[1617727581655,13.8339,2102.3,2098.9,44.1676506]
[1617727581857,13.8339,2102.3,2098.9,37.99]
[1617727582254,13.8339,2102.3,2101.9,2.90695]
[1617727582454,13.8339,2102.3,2101.9,5.59205]
[1617727582656,2.0,2103.1,2102.0,5.75]
[1617727583058,14.8675,2103.1,2102.0,5.75]
[1617727584358,2.90695,2102.1,2102.0,5.75]
[1617727586560,0.9489,2102.6,2102.0,5.75]
[1617727587662,14.72454454,2103.1,2102.0,5.75]
[1617727588462,14.72454454,2103.1,2102.6,2.90695]
[1617727588962,14.72454454,2103.1,2102.7,5.81]
[1617727590464,2.90695,2102.8,2102.7,5.81]
[1617727591667,3.84585,2102.8,2102.7,5.81]
[1617727591865,2.90695,2102.8,2102.7,5.81]
[1617727592067,4.90695,2102.8,2102.7,5.81]
[1617727592666,2.90695,2102.8,2102.7,5.81]
[1617727597971,15.0,2103.0,2102.7,5.81]
[1617727598373,15.0,2103.0,2102.9,2.90695]
[1617727598773,15.0,2103.0,2102.9,5.49695]
[1617727612684,17.4012,2103.0,2102.9,5.49695]
[1617727614489,20.30815,2103.0,2102.9,5.49695]
[1617727614686,22.30815,2103.0,2102.9,5.49695]
[1617727616296,17.4012,2103.0,2102.9,5.49695]
[1617727616496,15.0,2103.0,2102.9,5.49695]
[1617727616696,15.0,2103.0,2102.9,2.59]
[1617727617096,15.0,2103.0,2101.8,5.82]
[1617727617297,15.0,2103.0,2101.3,0.1]
[1617727617498,15.0,2103.0,2102.9,3.43]
[1617727617697,15.0,2103.0,2101.9,5.48]
[1617727617897,15.0,2103.0,2101.7,2.6717]
[1617727618098,15.0,2103.0,2102.9,4.23]
[1617727618298,15.0,2103.0,2101.8,0.08]
[1617727618496,15.0,2103.0,2101.7,2.6717]
[1617727618497,15.0,2103.0,2102.9,2.90695]
[1617727618696,15.0,2103.0,2102.9,8.68695]
[1617727618896,15.0,2103.0,2102.9,2.90695]
[1617727619296,15.0,2103.0,2102.9,8.86695]
[1617727634511,15.0,2103.0,2102.9,5.96]
[1617727634712,19.90695,2103.0,2102.9,5.0254]
[1617727634911,19.90695,2103.0,2102.8,2.90695]
[1617727635312,19.90695,2103.0,2102.9,5.79]
[1617727637513,19.90695,2103.0,2101.0,5.8]
[1617727637715,51.94935,2103.0,2102.9,5.95]
[1617727638114,51.94935,2103.0,2101.0,5.72]
[1617727638315,51.94935,2103.0,2100.3,5.91]
[1617727638515,51.94935,2103.0,2102.9,5.83]
[1617727638718,51.94935,2103.0,2102.3,2.90695]
[1617727639517,51.94935,2103.0,2102.4,5.77]
[1617727640120,51.94935,2103.0,2100.3,5.78]
[1617727640522,51.94935,2103.0,2102.5,5.96]
[1617727640719,2.90695,2102.6,2101.9,2.90695]
[1617727640920,32.0,2102.5,2101.9,2.90695]
[1617727641120,34.4253,2102.5,2102.0,5.89]
[1617727642621,34.4253,2102.5,2102.2,2.90695]
[1617727643023,34.4253,2102.5,2102.3,5.77]
[1617727644127,35.38,2102.5,2102.3,5.77]
[1617727644527,34.4253,2102.5,2102.3,5.77]
[1617727644727,34.4253,2102.5,2099.2,8.1250919]
[1617727644728,2.90695,2102.4,2101.8,2.90695]
[1617727644927,32.0,2102.3,2101.8,2.90695]
[1617727645127,32.0,2102.3,2101.9,0.84]
[1617727645728,32.0,2102.3,2099.2,2.0]
[1617727645729,32.0,2102.3,2100.2,5.99]
[1617727645929,32.0,2102.3,2100.1,0.35]
[1617727646129,13.5829,2102.2,2102.0,0.67]
[1617727646329,32.0,2102.1,2099.9,4.87849756]
[1617727646529,32.0,2102.1,2100.1,5.88]
[1617727646728,32.0,2102.1,2101.7,2.90695]
[1617727647128,32.0,2102.1,2101.8,5.86]
[1617727648731,2.90695,2101.9,2101.8,5.86]
[1617727648933,7.14515,2101.9,2101.8,5.86]
[1617727649231,37.14515,2101.9,2101.8,5.86]
[1617727652336,37.14515,2101.9,2099.9,5.71]
[1617727652734,34.2382,2101.9,2101.0,2.90695]
[1617727653136,35.3382,2101.9,2101.1,5.91]
[1617727654736,2.90695,2101.2,2101.1,5.91]
[1617727654937,36.81095,2101.2,2100.7,2.90695]
[1617727655135,36.81095,2101.2,2100.8,5.85]
[1617727655336,36.81095,2101.2,2101.1,5.79]
[1617727655536,36.81095,2101.2,2100.7,2.90695]
[1617727655735,36.81095,2101.2,2100.8,5.92]
[1617727656737,2.90695,2100.9,2100.8,5.92]
[1617727656936,34.90695,2100.9,2100.8,5.92]
[1617727657536,4.90695,2100.9,2100.8,5.92]
[1617727657938,2.0,2100.9,2100.8,5.92]
[1617727659644,2.90695,2101.2,2100.8,5.92]
[1617727660743,2.90695,2101.2,2101.1,2.90695]